bitfinex/quotes_BTCUSD_20241013
["timestamp","ask_amount","ask_price","bid_price","bid_amount"]
[1728835545625,0.000818,62349.0,62348.0,0.4187317]
[1728835546513,0.000818,62349.0,62348.0,0.4327317]
[1728835547948,0.000818,62349.0,62348.0,0.60202663]
[1728835548177,0.000818,62349.0,62348.0,0.76241663]
[1728835548420,0.000818,62349.0,62348.0,0.77442564]
[1728835548903,0.000818,62349.0,62348.0,0.76241395]
[1728835549408,0.000818,62349.0,62348.0,1.05080315]
[1728835549640,0.000818,62349.0,62348.0,1.06680315]
[1728835549882,0.000818,62349.0,62348.0,1.05280315]
[1728835550115,0.000818,62349.0,62348.0,1.03880315]
[1728835550332,0.000818,62349.0,62348.0,0.94672416]
[1728835550588,0.000818,62349.0,62348.0,1.03272416]
[1728835550810,0.24042122,62356.0,62355.0,0.56652693]
[1728835551032,0.24042122,62356.0,62355.0,1.01707016]
[1728835551245,0.004,62362.0,62361.0,0.03716]
[1728835551457,0.004,62362.0,62361.0,0.63894395]
[1728835551697,0.004,62362.0,62361.0,0.62693494]
[1728835551932,0.004,62362.0,62361.0,0.46657894]
[1728835552361,0.004,62362.0,62361.0,0.62693494]
[1728835552799,0.004,62362.0,62361.0,0.46657894]
[1728835553227,0.004,62362.0,62361.0,0.48057894]
[1728835553660,0.004,62362.0,62361.0,0.65493494]
[1728835555254,0.004,62362.0,62361.0,0.85223494]
[1728835555498,0.004,62362.0,62361.0,0.90022648]
[1728835555981,0.004,62362.0,62361.0,0.85223494]
[1728835556467,0.004,62362.0,62361.0,0.8663952]
[1728835556719,0.004,62362.0,62361.0,0.8683952]
[1728835556930,0.004,62362.0,62361.0,0.8804009]
[1728835557408,0.004,62362.0,62361.0,0.8664009]
[1728835557881,0.004,62362.0,62361.0,0.8804009]
[1728835558612,0.004,62362.0,62361.0,0.8664009]
[1728835558841,0.004,62362.0,62361.0,0.8804009]
[1728835559098,0.004818,62362.0,62361.0,0.8804009]
[1728835559573,0.004818,62362.0,62361.0,0.8664009]
[1728835559806,0.004818,62362.0,62361.0,0.8524009]
[1728835560022,0.004818,62362.0,62361.0,0.8804009]
[1728835560241,0.004818,62362.0,62361.0,0.8664009]
[1728835560696,0.004818,62362.0,62361.0,0.8804009]
[1728835560946,0.004818,62362.0,62361.0,0.8664009]
[1728835561421,0.004818,62362.0,62361.0,0.8804009]
[1728835561872,0.004818,62362.0,62361.0,0.8664009]
[1728835562087,0.004818,62362.0,62361.0,0.8804009]
[1728835562562,0.004818,62362.0,62361.0,0.8664009]
[1728835563031,0.004818,62362.0,62361.0,0.8804009]
[1728835564079,0.002,62369.0,62368.0,0.66359293]
[1728835564342,0.002,62369.0,62368.0,0.82481694]
[1728835565817,0.000819,62372.0,62368.0,0.82481694]
[1728835565818,0.000819,62372.0,62371.0,0.30349]
[1728835566074,0.000819,62372.0,62371.0,0.55551401]
[1728835566793,0.000819,62372.0,62371.0,0.99410387]
[1728835567022,0.000819,62372.0,62371.0,1.00605206]
[1728835567258,0.000819,62378.0,62377.0,0.199475]
[1728835567493,0.000819,62378.0,62377.0,0.89408887]
[1728835567967,0.000819,62378.0,62377.0,0.90603706]
[1728835568209,0.000819,62378.0,62377.0,1.00603706]
[1728835568954,0.000819,62378.0,62377.0,1.00603181]
[1728835569191,0.000819,62378.0,62377.0,1.03403181]
[1728835569698,0.000819,62378.0,62377.0,1.02003181]
[1728835569925,0.000819,62378.0,62377.0,1.03403181]
[1728835572687,0.000819,62378.0,62377.0,1.02002484]
[1728835572916,0.000819,62378.0,62377.0,1.00602484]
[1728835573147,0.000819,62378.0,62377.0,1.03402484]
[1728835573382,0.000819,62378.0,62377.0,1.02002484]
[1728835573677,0.000819,62378.0,62377.0,1.00602484]
[1728835573907,0.000819,62378.0,62377.0,1.02002484]
[1728835574878,0.000819,62378.0,62377.0,1.01244784]
[1728835575110,0.000819,62378.0,62377.0,1.02644784]
[1728835575371,0.000819,62378.0,62377.0,1.04044784]
[1728835575622,0.000819,62378.0,62377.0,1.01244784]
[1728835575872,0.000819,62378.0,62377.0,1.04044784]
[1728835576826,0.000819,62378.0,62377.0,1.05634958]
[1728835577063,0.000819,62380.0,62378.0,0.493272]
[1728835577323,0.000819,62380.0,62378.0,0.66643984]
[1728835577791,0.000819,62380.0,62379.0,0.32247]
[1728835578038,0.24124022,62388.0,62382.0,0.62495814]
[1728835578292,0.000778,62383.0,62382.0,0.86488215]
[1728835578612,0.000778,62383.0,62382.0,0.87682598]
[1728835579056,0.24124022,62388.0,62382.0,0.87682598]
[1728835579057,0.24124022,62388.0,62387.0,0.53759321]
[1728835579314,0.24124022,62388.0,62387.0,0.60571298]
[1728835579569,0.000819,62388.0,62387.0,0.59376915]
[1728835579824,0.000819,62394.0,62393.0,0.215434]
[1728835580064,0.000819,62394.0,62393.0,0.54560735]
[1728835580294,0.000819,62394.0,62393.0,0.38533335]
[1728835581267,0.000819,62394.0,62393.0,0.39728358]
[1728835581515,0.000819,62394.0,62393.0,0.55755758]
[1728835581746,0.000819,62394.0,62393.0,0.71455669]
[1728835581994,0.000819,62394.0,62393.0,0.39728358]
[1728835582244,0.000819,62394.0,62393.0,0.41333335]
[1728835582514,0.000819,62394.0,62393.0,0.58555758]
[1728835583832,0.000819,62394.0,62393.0,0.58555794]
[1728835584045,0.000819,62394.0,62393.0,0.75450728]
[1728835584273,0.000819,62394.0,62393.0,0.58555794]
[1728835584535,0.000819,62394.0,62393.0,0.43746415]
[1728835585057,0.0007317,62394.0,62393.0,0.59773815]
[1728835585558,0.0007317,62394.0,62393.0,0.59973815]
[1728835585804,0.0007317,62394.0,62393.0,0.59773815]
[1728835586040,0.050818,62397.0,62396.0,0.22410934]
[1728835586310,0.050818,62397.0,62396.0,0.03216]
[1728835586311,0.386582,62397.0,62396.0,0.03216]
[1728835587038,0.386582,62397.0,62394.0,0.03216]
[1728835587039,0.160269,62395.0,62394.0,0.03216]
[1728835587329,0.335769,62395.0,62394.0,0.03216]
[1728835588001,0.335769,62395.0,62394.0,0.05516]
[1728835589004,0.335769,62395.0,62394.0,0.06916]
[1728835589233,0.335769,62395.0,62394.0,0.05516]
[1728835589460,0.335769,62395.0,62394.0,0.06916]
[1728835589693,0.335769,62395.0,62394.0,0.23038401]
[1728835590204,0.335769,62395.0,62394.0,0.24438401]
[1728835593311,0.335769,62395.0,62394.0,0.25635834]
[1728835594315,0.336587,62395.0,62394.0,0.25635834]
[1728835594545,0.336587,62395.0,62394.0,0.42530768]
[1728835595012,0.336587,62395.0,62394.0,0.41333335]
[1728835595253,0.336587,62395.0,62394.0,0.42531624]
[1728835597440,0.336587,62395.0,62394.0,0.2563669]
[1728835598635,0.336587,62395.0,62394.0,0.24438401]
[1728835598849,0.336587,62395.0,62394.0,0.25637414]
[1728835600611,0.57700822,62395.0,62394.0,0.09515013]
[1728835600825,0.336587,62395.0,62394.0,0.09515013]
[1728835602341,0.336587,62395.0,62394.0,0.09515491]
[1728835605421,0.336587,62395.0,62394.0,0.08316]
[1728835605659,0.336587,62395.0,62394.0,0.084796]
[1728835606332,0.336587,62395.0,62394.0,0.09678106]
[1728835606553,0.336587,62395.0,62394.0,0.084796]
[1728835610381,0.336587,62395.0,62394.0,0.09678417]
[1728835615444,0.336587,62395.0,62394.0,0.084796]
[1728835615674,0.336587,62395.0,62394.0,0.09680237]
[1728835615972,0.336587,62395.0,62394.0,0.084796]
[1728835616190,0.161087,62395.0,62394.0,0.35111861]
[1728835616628,0.161087,62395.0,62394.0,0.36312497]
[1728835617517,0.161087,62395.0,62394.0,0.09680236]
[1728835617737,0.341787,62395.0,62394.0,0.09680236]
[1728835620575,0.341787,62395.0,62394.0,0.084796]
[1728835623315,0.4468856,62395.0,62394.0,0.061796]
[1728835623696,0.5468856,62395.0,62394.0,0.061796]
[1728835623699,0.60514082,62395.0,62394.0,0.061796]
[1728835623896,0.5468856,62395.0,62394.0,0.061796]
[1728835624393,0.5468856,62395.0,62394.0,0.047796]
[1728835624626,0.5468856,62395.0,62394.0,0.061796]
[1728835625079,0.5468856,62395.0,62394.0,0.047796]
[1728835625542,0.441787,62395.0,62394.0,0.015636]
[1728835626025,0.441787,62395.0,62394.0,0.029636]
[1728835626239,0.441787,62395.0,62394.0,0.015636]
[1728835626671,0.441787,62395.0,62394.0,0.001636]
[1728835626884,0.441787,62395.0,62394.0,0.009636]
[1728835627549,0.441787,62395.0,62394.0,0.023636]
[1728835627769,0.441787,62395.0,62394.0,0.009636]
[1728835628208,0.441787,62395.0,62394.0,0.023636]
[1728835629310,0.441787,62395.0,62394.0,0.046636]
[1728835629525,0.161087,62395.0,62394.0,0.046636]
[1728835629747,0.161087,62395.0,62394.0,0.078796]
[1728835630909,0.161087,62395.0,62394.0,0.064796]
[1728835631110,0.161087,62395.0,62394.0,0.056796]
[1728835631332,0.161087,62395.0,62394.0,0.084796]
[1728835631553,0.161087,62395.0,62394.0,0.070796]
[1728835632236,0.161087,62395.0,62394.0,0.084796]
[1728835632477,0.161087,62395.0,62394.0,0.070796]
[1728835633381,0.161087,62395.0,62394.0,0.084796]
[1728835634031,0.161087,62395.0,62394.0,0.070796]
[1728835634255,0.161087,62395.0,62394.0,0.084796]
[1728835640949,0.126087,62395.0,62394.0,0.084796]
[1728835641168,0.126087,62395.0,62394.0,0.070796]
[1728835641905,0.126087,62395.0,62394.0,0.084796]
[1728835642136,0.126087,62395.0,62394.0,0.070796]
[1728835642387,0.126087,62395.0,62394.0,0.084796]
[1728835669979,0.126087,62395.0,62394.0,0.18988631]
[1728835671196,0.126087,62395.0,62394.0,0.35111032]
[1728835672410,0.126087,62395.0,62394.0,0.33711032]
[1728835672659,0.126087,62395.0,62394.0,0.35111032]
[1728835672900,0.126087,62395.0,62394.0,0.33711032]
[1728835673157,0.126087,62395.0,62394.0,0.35111032]
[1728835673623,0.126087,62395.0,62394.0,0.33711032]
[1728835674324,0.126087,62395.0,62394.0,0.35111032]
[1728835674550,0.126087,62395.0,62394.0,0.38510317]
[1728835675010,0.126087,62395.0,62394.0,0.37110317]
[1728835675249,0.126087,62395.0,62394.0,0.38510317]
[1728835675480,0.000818,62395.0,62394.0,0.38510317]
[1728835675707,0.000818,62395.0,62394.0,0.58637682]
[1728835675941,0.000818,62395.0,62394.0,0.62437324]
[1728835676163,0.161087,62395.0,62394.0,0.62437324]
[1728835676388,0.161087,62395.0,62394.0,0.51438754]
[1728835677331,0.161087,62395.0,62394.0,0.52838754]
[1728835678467,0.161087,62395.0,62394.0,0.60039214]
[1728835679162,0.000818,62395.0,62394.0,0.60039214]
[1728835679358,0.000818,62395.0,62394.0,0.52838754]
[1728835679579,0.161087,62395.0,62394.0,0.60039591]
[1728835680983,0.161087,62395.0,62394.0,0.60032872]
[1728835682524,0.161087,62395.0,62394.0,0.42311925]
[1728835685031,0.161087,62395.0,62394.0,0.35111032]
[1728835687702,0.000818,62395.0,62394.0,0.35111032]
[1728835687927,0.161087,62395.0,62394.0,0.35111032]
[1728835690419,0.161087,62395.0,62394.0,0.24602001]
[1728835690647,0.161087,62395.0,62394.0,0.35111032]
[1728835691571,0.000818,62395.0,62394.0,0.35111032]
[1728835691806,0.161087,62395.0,62394.0,0.35111032]
[1728835693017,0.161087,62395.0,62394.0,0.39904423]
[1728835693255,0.000818,62395.0,62394.0,0.35111032]
[1728835693480,0.161087,62395.0,62394.0,0.39904598]
[1728835694162,0.000818,62395.0,62394.0,0.39904598]
[1728835694384,0.000818,62395.0,62394.0,0.55931698]
[1728835694660,0.000818,62395.0,62394.0,0.39904598]
[1728835699526,0.000818,62395.0,62394.0,0.35111032]
[1728835699996,0.000818,62395.0,62394.0,0.39905832]
[1728835700436,0.000818,62395.0,62394.0,0.35111032]
[1728835700686,0.000818,62395.0,62394.0,0.061796]
[1728835700687,0.251087,62395.0,62394.0,0.061796]
[1728835701397,0.161087,62395.0,62394.0,0.061796]
[1728835702070,0.161087,62395.0,62394.0,0.084796]
[1728835702557,0.161087,62395.0,62394.0,0.24602001]
[1728835704351,0.000818,62395.0,62394.0,0.24602001]
[1728835704591,0.000818,62395.0,62394.0,0.27997876]
[1728835704592,0.161087,62395.0,62394.0,0.27997876]
[1728835705040,0.161087,62395.0,62394.0,0.26597876]
[1728835705501,0.161087,62395.0,62394.0,0.29397876]
[1728835705983,0.161087,62395.0,62394.0,0.27997876]
[1728835706209,0.161087,62395.0,62394.0,0.29397876]
[1728835706693,0.161087,62395.0,62394.0,0.27997876]
[1728835706914,0.161087,62395.0,62394.0,0.29397876]
[1728835707588,0.161087,62395.0,62394.0,0.24602001]
[1728835707808,0.161087,62395.0,62394.0,0.29397942]
[1728835708518,0.161087,62395.0,62394.0,0.24602001]
[1728835709442,0.000818,62395.0,62394.0,0.24602001]
[1728835709679,0.161087,62395.0,62394.0,0.31796156]
[1728835710638,0.000818,62395.0,62394.0,0.49493361]
[1728835710860,0.161087,62395.0,62394.0,0.31796156]
[1728835711094,0.000818,62395.0,62394.0,0.49488377]
[1728835711326,0.161087,62395.0,62394.0,0.49488377]
[1728835712239,0.000818,62395.0,62394.0,0.49488377]
[1728835712483,0.161087,62395.0,62394.0,0.49488377]
[1728835713442,0.161087,62395.0,62394.0,0.50687169]
[1728835714815,0.256987,62395.0,62394.0,0.32264768]
[1728835715048,0.256987,62395.0,62394.0,0.061796]
[1728835715270,0.256987,62395.0,62394.0,0.07378163]
[1728835716401,0.256987,62395.0,62394.0,0.09678163]
[1728835718047,0.256987,62395.0,62394.0,0.084796]
[1728835723273,0.256987,62395.0,62394.0,0.056796]
[1728835723723,0.256987,62395.0,62394.0,0.084796]
[1728835724179,0.256987,62395.0,62394.0,0.070796]
[1728835724433,0.256987,62395.0,62394.0,0.056796]
[1728835724660,0.256987,62395.0,62394.0,0.070796]
[1728835725985,0.256987,62395.0,62394.0,0.084796]
[1728835744570,0.251987,62395.0,62394.0,0.084796]
[1728835745056,0.156087,62395.0,62394.0,0.084796]
[1728835753068,0.050818,62397.0,62395.0,0.183268]
[1728835753308,0.050818,62397.0,62396.0,0.48174032]
[1728835753533,0.050818,62397.0,62396.0,0.82289942]
[1728835753769,0.050818,62397.0,62396.0,0.84681127]
[1728835754243,0.050818,62397.0,62396.0,0.75103369]
[1728835755178,0.050818,62397.0,62396.0,0.76503369]
[1728835755402,0.050818,62397.0,62396.0,0.60476769]
[1728835755632,0.050818,62397.0,62396.0,0.61876769]
[1728835755859,0.050818,62397.0,62396.0,0.67394338]
[1728835756094,0.050818,62397.0,62396.0,0.51367738]
[1728835756336,0.050818,62397.0,62396.0,0.7045765]
[1728835757040,0.050818,62397.0,62396.0,0.63276769]
[1728835757511,0.050818,62397.0,62396.0,0.59948258]
[1728835757747,0.050818,62397.0,62396.0,0.70449029]
[1728835758226,0.050818,62397.0,62396.0,0.86475629]
[1728835758971,0.050818,62397.0,62396.0,0.97019161]
[1728835759316,0.050818,62397.0,62396.0,0.99412693]
[1728835759570,0.050818,62397.0,62396.0,0.83245032]
[1728835759827,0.050818,62397.0,62396.0,0.98212693]
[1728835760072,0.050818,62397.0,62396.0,0.98012693]
[1728835760332,0.050818,62397.0,62396.0,0.84645032]
[1728835761102,0.050818,62397.0,62396.0,0.83245032]
[1728835761342,0.050818,62397.0,62396.0,0.94211581]
[1728835761600,0.050818,62397.0,62396.0,0.83245032]
[1728835761836,0.050818,62397.0,62396.0,0.95811072]
[1728835762302,0.050818,62397.0,62396.0,0.84845032]
[1728835762557,0.050818,62397.0,62396.0,0.86245032]
[1728835762805,0.050818,62397.0,62396.0,0.86045032]
[1728835763034,0.050818,62397.0,62396.0,0.86245032]
[1728835763510,0.050818,62397.0,62396.0,0.86223891]
[1728835764748,0.050818,62397.0,62396.0,0.98177235]
[1728835764977,0.050818,62397.0,62396.0,0.86223891]
[1728835765432,0.050818,62397.0,62396.0,0.95783154]
[1728835765677,0.050818,62397.0,62396.0,0.95583154]
[1728835766181,0.050818,62397.0,62396.0,0.85074123]
[1728835766428,0.050818,62397.0,62396.0,1.06092185]
[1728835766681,0.050818,62397.0,62396.0,0.96532922]
[1728835766934,0.050818,62397.0,62396.0,0.96520048]
[1728835767400,0.050818,62397.0,62396.0,1.03885327]
[1728835767877,0.050818,62397.0,62396.0,0.96720048]
[1728835768130,0.050818,62397.0,62396.0,1.03885035]
[1728835768385,0.050818,62397.0,62396.0,1.03884501]
[1728835769840,0.050818,62397.0,62396.0,1.27284778]
[1728835770079,0.050818,62397.0,62396.0,1.26784778]
[1728835770308,0.050818,62397.0,62396.0,1.06720048]
[1728835770561,0.050818,62397.0,62396.0,1.17729079]
[1728835771079,0.050818,62397.0,62396.0,1.16329079]
[1728835771314,0.001318,62399.0,62398.0,0.490621]
[1728835771547,0.001318,62399.0,62398.0,0.89967265]
[1728835771792,0.001318,62399.0,62398.0,0.82806461]
[1728835772715,0.001318,62399.0,62398.0,0.93755445]
[1728835772947,0.001318,62399.0,62398.0,0.85606461]
[1728835773889,0.001318,62399.0,62398.0,0.84206461]
[1728835774162,0.001318,62399.0,62398.0,0.82806461]
[1728835774412,0.000818,62412.0,62411.0,0.192388]
[1728835774638,0.000818,62412.0,62411.0,0.40256862]
[1728835774880,0.000818,62412.0,62411.0,0.192388]
[1728835775105,0.000818,62412.0,62411.0,0.40256862]
[1728835775566,0.000818,62412.0,62411.0,0.65939263]
[1728835775807,0.000818,62412.0,62411.0,0.66139263]
[1728835776038,0.000818,62412.0,62411.0,0.75169263]
[1728835776259,0.000818,62412.0,62411.0,0.77269263]
[1728835777176,0.000818,62412.0,62411.0,0.75869263]
[1728835777691,0.000818,62412.0,62411.0,0.78669263]
[1728835777920,0.000818,62412.0,62411.0,0.77269263]
[1728835778367,0.000818,62412.0,62411.0,0.78669263]
[1728835779810,0.000818,62412.0,62411.0,0.85089563]
[1728835780793,0.000818,62412.0,62411.0,0.75529563]
[1728835781023,0.000818,62412.0,62411.0,0.75729563]
[1728835781306,0.000818,62412.0,62411.0,0.67899563]
[1728835781976,0.000818,62412.0,62411.0,0.69114293]
[1728835782879,0.161043,62412.0,62411.0,0.33704761]
[1728835783105,0.161043,62412.0,62411.0,0.34278762]
[1728835783350,0.000818,62412.0,62411.0,0.34278762]
[1728835783874,0.161043,62412.0,62411.0,0.34278762]
[1728835784301,0.161043,62412.0,62411.0,0.36578762]
[1728835788415,0.161003,62412.0,62411.0,0.36578762]
[1728835796068,0.000778,62412.0,62411.0,0.47087793]
[1728835796311,0.000778,62412.0,62411.0,0.48283146]
[1728835798034,0.000778,62412.0,62411.0,0.47087793]
[1728835799869,0.000778,62412.0,62411.0,0.63110593]
[1728835800332,0.000778,62412.0,62411.0,0.67879908]
[1728835800588,0.000778,62412.0,62411.0,0.6907633]
[1728835801320,0.000778,62412.0,62411.0,0.32035468]
[1728835801533,0.000778,62412.0,62411.0,0.37775184]
[1728835801756,0.000778,62412.0,62411.0,0.53797984]
[1728835801995,0.000778,62412.0,62411.0,0.37775184]
[1728835802242,0.161003,62412.0,62411.0,0.37775184]
[1728835806975,0.000778,62412.0,62411.0,0.37775184]
[1728835807193,0.000778,62412.0,62411.0,0.48284215]
[1728835807458,0.000778,62412.0,62411.0,0.69088598]
[1728835807710,0.000778,62412.0,62411.0,0.70282876]
[1728835807962,0.000778,62412.0,62411.0,0.7147923]
[1728835808200,0.000778,62412.0,62411.0,0.89130729]
[1728835808682,0.000778,62412.0,62411.0,0.7147923]
[1728835808926,0.000778,62412.0,62411.0,0.53797916]
[1728835809609,0.000778,62412.0,62411.0,0.58580604]
[1728835809831,0.000778,62412.0,62411.0,0.58580644]
[1728835811534,0.000778,62412.0,62411.0,0.58581402]
[1728835812025,0.000778,62412.0,62411.0,0.53798206]
[1728835813863,0.000778,62412.0,62411.0,0.37775406]
[1728835814152,0.161003,62412.0,62411.0,0.42558757]
[1728835815005,0.161003,62412.0,62411.0,0.42722357]
[1728835815460,0.161003,62412.0,62411.0,0.41324123]
[1728835815684,0.161003,62412.0,62411.0,0.42724123]
[1728835815897,0.161003,62412.0,62411.0,0.37939304]
[1728835816195,0.161003,62412.0,62411.0,0.36539304]
[1728835816437,0.161003,62412.0,62411.0,0.41324123]
[1728835816676,0.161003,62412.0,62411.0,0.42724123]
[1728835816898,0.161003,62412.0,62411.0,0.41324123]
[1728835817365,0.161003,62412.0,62411.0,0.42724123]
[1728835817596,0.000778,62412.0,62411.0,0.41324123]
[1728835817850,0.000778,62412.0,62411.0,0.37939304]
[1728835818112,0.000778,62412.0,62411.0,0.42724437]
[1728835818342,0.161003,62412.0,62411.0,0.37939304]
[1728835818567,0.161003,62412.0,62411.0,0.42724551]
[1728835818799,0.000778,62412.0,62411.0,0.42724551]
[1728835820253,0.161003,62412.0,62411.0,0.42725403]
[1728835822398,0.161003,62412.0,62411.0,0.11307872]
[1728835822621,0.256603,62412.0,62411.0,0.21816903]
[1728835823058,0.337103,62412.0,62411.0,0.11307872]
[1728835823769,0.337103,62412.0,62411.0,0.1011093]
[1728835824485,0.337103,62412.0,62411.0,0.11308066]
[1728835824710,0.337103,62412.0,62411.0,0.1011093]
[1728835825873,0.337103,62412.0,62411.0,0.20619961]
[1728835827909,0.337103,62412.0,62411.0,0.19219961]
[1728835828123,0.337103,62412.0,62411.0,0.20619961]
[1728835829269,0.337103,62412.0,62411.0,0.070796]
[1728835829516,0.337103,62412.0,62411.0,0.061796]
[1728835830188,0.337103,62412.0,62411.0,0.047796]
[1728835830647,0.337103,62412.0,62411.0,0.061796]
[1728835830877,0.337103,62412.0,62411.0,0.001636]
[1728835831111,0.337103,62412.0,62411.0,0.015636]
[1728835831388,0.337103,62412.0,62411.0,0.029636]
[1728835831871,0.337103,62412.0,62411.0,0.015636]
[1728835831872,0.47795303,62412.0,62411.0,0.015636]
[1728835832116,0.442103,62412.0,62411.0,0.015636]
[1728835832559,0.442103,62412.0,62411.0,0.013636]
[1728835832560,0.437103,62412.0,62411.0,0.013636]
[1728835832777,0.437103,62412.0,62411.0,0.027636]
[1728835832997,0.437103,62412.0,62411.0,0.013636]
[1728835833219,0.437103,62412.0,62411.0,0.036636]
[1728835833483,0.437103,62412.0,62411.0,0.047636]
[1728835833704,0.437103,62412.0,62411.0,0.024636]
[1728835833937,0.437103,62412.0,62411.0,0.038636]
[1728835834165,0.337103,62412.0,62411.0,0.043636]
[1728835834605,0.337103,62412.0,62411.0,0.038636]
[1728835835030,0.337103,62412.0,62411.0,0.048636]
[1728835839636,0.48472108,62412.0,62411.0,0.025636]
[1728835839877,0.64702706,62412.0,62411.0,0.025636]
[1728835840108,0.58472108,62412.0,62411.0,0.025636]
[1728835840325,0.54219331,62412.0,62411.0,0.025636]
[1728835840989,0.54219331,62412.0,62411.0,0.015636]
[1728835841481,0.54719331,62412.0,62411.0,0.020636]
[1728835841748,0.54719331,62412.0,62411.0,0.015636]
[1728835841970,0.54719331,62412.0,62411.0,0.001636]
[1728835842187,0.54719331,62412.0,62411.0,0.012636]
[1728835842891,0.57228873,62412.0,62411.0,0.012636]
[1728835843105,0.57228873,62412.0,62411.0,0.017636]
[1728835845530,0.46719842,62412.0,62411.0,0.017636]
[1728835845964,0.46219842,62412.0,62411.0,0.017636]
[1728835848332,0.49706492,62412.0,62411.0,0.017636]
[1728835848997,0.46219842,62412.0,62411.0,0.017636]
[1728835849912,0.437103,62412.0,62411.0,0.017636]
[1728835852918,0.46219787,62412.0,62411.0,0.017636]
[1728835859896,0.437103,62412.0,62411.0,0.017636]
[1728835860852,0.54219331,62412.0,62411.0,0.017636]
[1728835861297,0.56176437,62412.0,62411.0,0.017636]
[1728835862417,0.60929214,62412.0,62411.0,0.017636]
[1728835862649,0.56676437,62412.0,62411.0,0.017636]
[1728835862883,0.59185936,62412.0,62411.0,0.017636]
[1728835869873,0.56676437,62412.0,62411.0,0.017636]
[1728835872818,0.5918595,62412.0,62411.0,0.017636]
[1728835874192,0.63989685,62412.0,62411.0,0.017636]
[1728835875080,0.69894981,62412.0,62411.0,0.017636]
[1728835875304,0.83696894,62412.0,62411.0,0.017636]
[1728835875529,0.81704318,62412.0,62411.0,0.017636]
[1728835875768,0.81904318,62412.0,62411.0,0.017636]
[1728835876448,0.71395287,62412.0,62411.0,0.017636]
[1728835876874,0.81904318,62412.0,62411.0,0.017636]
[1728835877100,0.71395287,62412.0,62411.0,0.017636]
[1728835877788,0.71195287,62412.0,62411.0,0.017636]
[1728835878006,0.81704318,62412.0,62411.0,0.017636]
[1728835878462,0.71195287,62412.0,62411.0,0.017636]
[1728835878680,1.21195287,62412.0,62411.0,0.017636]
[1728835878898,1.0938595,62412.0,62411.0,0.017636]
[1728835879165,1.31928089,62412.0,62411.0,0.017636]
[1728835879375,1.31928391,62412.0,62411.0,0.017636]
[1728835879819,1.29418878,62412.0,62411.0,0.017636]
[1728835882504,1.18909847,62412.0,62411.0,0.017636]
[1728835882728,1.21419524,62412.0,62411.0,0.017636]
[1728835883672,1.2142045,62412.0,62411.0,0.017636]
[1728835883899,1.21420187,62412.0,62411.0,0.017636]
[1728835884123,1.31929218,62412.0,62411.0,0.017636]
[1728835884355,1.19895145,62412.0,62411.0,0.017636]
[1728835887094,1.09386114,62412.0,62411.0,0.017636]
[1728835887309,1.19895145,62412.0,62411.0,0.017636]
[1728835889004,1.31929764,62412.0,62411.0,0.017636]
[1728835889239,1.31929594,62412.0,62411.0,0.017636]
[1728835889471,1.31929594,62412.0,62411.0,0.012636]
[1728835889472,1.19895145,62412.0,62411.0,0.012636]
[1728835889714,1.17385468,62412.0,62411.0,0.012636]
[1728835889953,1.17385468,62412.0,62411.0,0.014636]
[1728835890660,1.17385468,62412.0,62411.0,0.003636]
[1728835890886,1.17385468,62412.0,62411.0,0.011636]
[1728835892321,1.29419229,62412.0,62411.0,0.011636]
[1728835892556,1.18910198,62412.0,62411.0,0.011636]
[1728835892796,1.31928911,62412.0,62411.0,0.011636]
[1728835893031,1.31928911,62412.0,62411.0,1e-06]
[1728835893032,1.1989515,62412.0,62411.0,1e-06]
[1728835895122,1.1989515,62412.0,62411.0,0.001637]
[1728835898589,0.98677088,62412.0,62411.0,0.001637]
[1728835898808,1.21218975,62412.0,62411.0,0.001637]
[1728835899946,1.18709293,62412.0,62411.0,0.001637]
[1728835900660,0.88633156,62412.0,62411.0,0.001637]
[1728835900886,0.85726476,62412.0,62411.0,0.001637]
[1728835901345,0.83319867,62412.0,62411.0,0.001637]
[1728835901572,0.80913122,62412.0,62411.0,0.001637]
[1728835907086,0.83422627,62412.0,62411.0,0.001637]
[1728835907333,0.90631084,62412.0,62411.0,0.001637]
[1728835907578,0.83422627,62412.0,62411.0,0.024637]
[1728835909721,0.761003,62412.0,62411.0,0.024637]
[1728835912767,0.78609793,62412.0,62411.0,0.024637]
[1728835915053,0.83422409,62412.0,62411.0,0.024637]
[1728835915492,0.78609793,62412.0,62411.0,0.024637]
[1728835915713,0.83422409,62412.0,62411.0,0.024637]
[1728835915932,0.83422141,62412.0,62411.0,0.024637]
[1728835916165,0.78609793,62412.0,62411.0,0.024637]
[1728835916855,0.83422141,62412.0,62411.0,0.024637]
[1728835917737,0.9014415,62412.0,62411.0,0.024637]
[1728835919155,0.83422141,62412.0,62411.0,0.024637]
[1728835919828,0.80912648,62412.0,62411.0,0.024637]
[1728835920735,0.80912572,62412.0,62411.0,0.024637]
[1728835922734,0.83422074,62412.0,62411.0,0.024637]
[1728835927283,0.78609802,62412.0,62411.0,0.024637]
[1728835929078,0.83422074,62412.0,62411.0,0.024637]
[1728835929753,0.80912572,62412.0,62411.0,0.024637]
[1728835932758,0.83422074,62412.0,62411.0,0.024637]
[1728835933651,0.78609802,62412.0,62411.0,0.024637]
[1728835938645,0.85830002,62412.0,62411.0,0.024637]
[1728835938869,0.78609802,62412.0,62411.0,0.024637]
[1728835939743,0.833205,62412.0,62411.0,0.024637]
[1728835940581,0.99457471,62412.0,62411.0,0.024637]
[1728835941863,0.833205,62412.0,62411.0,0.024637]
[1728835942736,0.85830002,62412.0,62411.0,0.024637]
[1728835944913,0.78609802,62412.0,62411.0,0.024637]
[1728835946695,0.88244288,62412.0,62411.0,0.024637]
[1728835949853,1.0063826,62412.0,62411.0,0.001637]
[1728835950136,1.00638289,62412.0,62411.0,0.001637]
[1728835951332,0.91003774,62412.0,62411.0,0.001637]
[1728835951568,0.86609331,62412.0,62411.0,0.001637]
[1728835952443,1.02746302,62412.0,62411.0,0.001637]
[1728835952652,1.43488477,62412.0,62411.0,0.001637]
[1728835952863,1.23245906,62412.0,62411.0,0.001637]
[1728835956922,1.23245906,62412.0,62411.0,1e-06]
[1728835956923,1.33754937,62412.0,62411.0,1e-06]
[1728835957193,1.3814938,62412.0,62411.0,1e-06]